bitfinex/quotes_SOLUSD_20250902
["timestamp","ask_amount","ask_price","bid_price","bid_amount"]
[1756841626725,51.47908958,205.01,204.97,0.03]
[1756841626931,51.47908958,205.01,204.97,0.72]
[1756841627944,51.47908958,205.01,204.98,0.69]
[1756841628329,39.38,205.01,204.97,0.03]
[1756841628646,39.38,205.01,204.97,0.72]
[1756841628849,51.47908958,205.01,204.98,0.69]
[1756841629454,39.38,205.01,204.98,0.69]
[1756841630347,0.06,205.06,204.98,12.09908958]
[1756841630650,0.06,205.06,204.97,4.90872749]
[1756841630651,39.38,205.05,205.01,12.09908958]
[1756841630959,39.38,205.05,205.01,12.78908958]
[1756841631351,44.2568593,205.05,204.98,0.69]
[1756841631557,12.09908958,205.03,204.97,0.03]
[1756841631863,12.09908958,205.01,204.97,0.03]
[1756841632035,51.47908958,205.02,204.97,0.72]
[1756841632233,39.38,205.02,204.98,12.78908958]
[1756841632753,39.38,205.02,204.99,0.69]
[1756841632957,56.35670077,205.02,204.98,0.69]
[1756841633534,39.38,205.02,204.98,0.69]
[1756841633747,26.06,205.06,204.99,12.78908958]
[1756841633951,39.36,205.04,205.0,12.78908958]
[1756841634148,0.06,205.06,205.01,12.78908958]
[1756841634346,39.36,205.05,205.02,0.69]
[1756841634552,39.36,205.05,205.03,12.78908958]
[1756841634758,39.36,205.05,205.03,0.69]
[1756841635343,39.92,205.05,204.98,0.69]
[1756841635551,51.45908958,205.05,204.99,12.09908958]
[1756841635766,39.36,205.05,204.99,12.78908958]
[1756841636062,39.36,205.05,205.0,12.09908958]
[1756841636252,39.36,205.05,204.98,4.87852473]
[1756841636253,39.36,205.04,205.01,0.69]
[1756841636455,39.36,205.04,205.02,12.78908958]
[1756841636661,39.36,205.05,205.03,12.78908958]
[1756841637162,39.36,205.05,205.03,0.69]
[1756841637460,39.36,205.05,205.0,12.78908958]
[1756841638054,39.36,205.05,205.02,12.09908958]
[1756841638364,39.42,205.06,205.03,12.78908958]
[1756841638547,39.42,205.06,205.03,0.69]
[1756841638756,52.07908958,205.06,204.99,26.0]
[1756841638962,51.51908958,205.06,205.01,12.09908958]
[1756841639161,39.42,205.06,205.01,12.78908958]
[1756841639348,56.39580779,205.06,205.01,12.78908958]
[1756841640048,44.29671821,205.06,205.02,0.69]
[1756841640247,56.39580779,205.06,205.0,12.09908958]
[1756841640448,56.39580779,205.06,205.0,12.78908958]
[1756841640649,56.39580779,205.06,205.0,17.66708044]
[1756841640951,56.39580779,205.06,205.0,12.78908958]
[1756841641641,56.39580779,205.06,205.0,12.81908958]
[1756841641866,0.06,205.05,205.0,12.81908958]
[1756841642067,0.06,205.05,205.01,0.69]
[1756841642565,0.56,205.04,205.0,0.03]
[1756841642754,12.09908958,205.02,205.0,0.03]
[1756841642952,12.65908958,205.01,205.0,0.03]
[1756841643344,51.45908958,205.01,205.0,0.03]
[1756841643546,39.36,205.01,205.0,0.03]
[1756841644176,12.09908958,205.01,205.0,0.03]
[1756841644349,39.36,205.01,205.0,0.03]
[1756841645970,51.45908958,205.01,205.0,0.03]
[1756841647574,39.36,205.01,205.0,0.03]
[1756841647760,16.97646641,205.03,205.0,0.03]
[1756841647960,0.06,205.05,205.01,12.78908958]
[1756841648272,39.36,205.04,205.01,12.78908958]
[1756841648471,39.36,205.04,205.0,12.12908958]
[1756841648969,0.06,205.05,205.01,12.78908958]
[1756841649274,39.36,205.03,205.01,12.78908958]
[1756841650359,0.06,205.05,205.02,0.69]
[1756841650678,0.06,205.05,205.0,4.90802118]
[1756841650868,39.36,205.04,205.01,0.69]
[1756841651074,39.92,205.04,205.0,0.03]
[1756841651276,39.36,205.04,205.0,5.59800913]
[1756841651476,12.15908958,205.05,205.0,5.59804558]
[1756841651679,39.36,205.04,205.01,12.78908958]
[1756841651849,39.36,205.03,205.01,12.78908958]
[1756841652360,0.06,205.05,205.02,12.78908958]
[1756841652682,0.06,205.05,205.04,12.09908958]
[1756841653066,0.06,205.05,205.04,12.78908958]
[1756841654260,0.06,205.05,205.04,17.66618673]
[1756841654582,0.06,205.05,205.0,0.72]
[1756841654767,0.06,205.05,205.0,12.12908958]
[1756841655076,0.06,205.05,205.01,0.69]
[1756841655682,0.06,205.05,205.02,0.69]
[1756841655893,12.15908958,205.05,205.0,0.03]
[1756841656051,12.09908958,205.04,205.0,0.03]
[1756841656256,39.34,205.03,205.0,0.03]
[1756841656673,39.34,205.03,205.0,0.72]
[1756841657579,12.09908958,205.01,205.0,0.03]
[1756841659759,16.97690041,205.01,205.0,0.03]
[1756841660575,31.13249442,205.01,205.0,0.03]
[1756841664069,30.57249442,205.01,205.0,0.03]
[1756841664277,77.43908958,205.01,205.0,0.03]
[1756841664972,82.31690041,205.01,205.0,0.03]
[1756841665594,96.61465599,205.01,205.0,0.03]
[1756841665771,96.89897913,205.01,205.0,0.03]
[1756841665976,96.89897913,205.01,205.0,1e-08]
[1756841667884,26.0,204.97,204.95,0.03]
[1756841668067,65.17684516,204.96,204.95,0.03]
[1756841668272,65.73684516,204.96,204.95,0.03]
[1756841669190,70.61584594,204.96,204.95,0.03]
[1756841670280,70.61584594,204.96,204.95,1e-08]
[1756841670281,82.99925866,204.96,204.95,1e-08]
[1756841670491,0.14216157,204.95,204.94,1e-08]
[1756841670679,14.02207872,204.93,204.92,1e-08]
[1756841670868,65.4611683,204.93,204.92,1e-08]
[1756841671068,66.0211683,204.93,204.92,1e-08]
[1756841671367,31.56088332,204.93,204.92,1e-08]
[1756841671577,66.82218756,204.93,204.92,1e-08]
[1756841672979,18.90179374,204.93,204.92,1e-08]
[1756841673305,65.97786442,204.93,204.92,1e-08]
[1756841673481,66.82218756,204.93,204.92,1e-08]
[1756841674095,27.48218756,204.93,204.92,1e-08]
[1756841674298,66.82218756,204.93,204.92,1e-08]
[1756841675168,66.26218756,204.93,204.92,1e-08]
[1756841676498,18.47530903,204.93,204.92,1e-08]
[1756841676803,91.81570285,204.93,204.92,1e-08]
[1756841677092,83.79530903,204.93,204.92,1e-08]
[1756841677267,0.28432314,204.87,204.83,0.03]
[1756841677468,16.9476516,204.84,204.83,0.03]
[1756841677693,56.2676516,204.84,204.83,0.72]
[1756841677874,56.2676516,204.84,204.83,0.03]
[1756841678070,42.52989602,204.84,204.83,0.72]
[1756841678589,3.20989602,204.85,204.83,0.72]
[1756841678792,39.32,204.84,204.83,0.03]
[1756841679093,42.52989602,204.84,204.83,0.03]
[1756841679298,39.32,204.84,204.83,0.72]
[1756841679501,42.52989602,204.84,204.83,0.72]
[1756841680313,39.32,204.84,204.83,0.72]
[1756841681095,42.52989602,204.84,204.83,0.72]
[1756841681973,39.32,204.84,204.83,0.72]
[1756841682798,39.34,204.84,204.83,0.72]
[1756841684101,42.54989602,204.84,204.83,0.72]
[1756841685369,39.34,204.84,204.83,0.72]
[1756841685574,42.54989602,204.84,204.83,0.72]
[1756841686102,39.34,204.84,204.83,0.72]
[1756841686819,13.54174565,204.9,204.83,8.81193186]
[1756841686820,3.20989602,204.89,204.83,8.81193186]
[1756841686992,16.80549003,204.87,204.83,0.03]
[1756841687180,39.32,204.88,204.83,0.03]
[1756841687181,16.9476516,204.84,204.83,0.03]
[1756841687391,53.05775558,204.84,204.83,0.03]
[1756841687588,56.2676516,204.84,204.83,0.03]
[1756841689002,61.14951061,204.84,204.83,0.03]
[1756841689483,61.99383375,204.84,204.83,0.03]
[1756841692401,58.78393773,204.84,204.83,0.03]
[1756841692714,56.2676516,204.84,204.83,0.03]
[1756841692910,61.14951061,204.84,204.83,0.03]
[1756841695304,56.2676516,204.84,204.83,0.03]
[1756841695488,3.20989602,204.85,204.83,0.73]
[1756841695701,133.4,204.87,204.84,0.7]
[1756841695899,3.20989602,204.85,204.83,0.03]
[1756841696212,39.32,204.84,204.83,0.03]
[1756841696787,42.52989602,204.84,204.83,0.03]
[1756841696987,39.32,204.84,204.83,0.73]
[1756841698403,42.52989602,204.84,204.83,0.03]
[1756841698818,42.52989602,204.84,204.83,0.73]
[1756841698989,42.52989602,204.84,204.83,0.03]
[1756841699611,39.32,204.84,204.83,0.73]
[1756841700490,47.41175503,204.84,204.83,0.03]
[1756841700705,61.70951061,204.84,204.83,0.03]
[1756841701009,61.99383375,204.84,204.83,0.03]
[1756841701925,39.59559401,204.81,204.8,0.03]
[1756841702126,95.22939725,204.81,204.8,0.03]
[1756841702305,82.94981317,204.81,204.8,0.03]
[1756841702916,83.09197474,204.81,204.8,0.03]
[1756841703418,87.97454883,204.81,204.8,0.03]
[1756841704208,39.59559401,204.81,204.8,0.03]
[1756841704410,133.4,204.87,204.8,0.73]
[1756841704411,13.59559401,204.85,204.8,0.73]
[1756841704607,39.3,204.84,204.81,0.7]
[1756841704808,39.3,204.84,204.81,3.90989602]
[1756841705119,39.3,204.84,204.82,3.90989602]
[1756841705425,39.3,204.84,204.83,0.7]
[1756841705623,39.3,204.84,204.83,8.79199336]
[1756841706005,16.80549003,204.9,204.83,8.79199336]
[1756841706006,3.20989602,204.9,204.83,8.79199336]
[1756841706205,39.3,204.89,204.84,0.7]
[1756841706424,39.3,204.89,204.85,3.20989602]
[1756841706631,39.3,204.89,204.86,0.7]
[1756841706795,39.3,204.89,204.87,0.7]
[1756841707409,0.06,204.91,204.8,12.23646653]
[1756841707410,0.06,204.91,204.88,0.7]
[1756841707600,39.3,204.9,204.88,0.7]
[1756841707931,0.06,204.91,204.89,3.90989602]
[1756841708233,39.3,204.9,204.89,3.90989602]
[1756841708432,0.06,204.91,204.89,3.90989602]
[1756841708724,0.06,204.91,204.9,3.90989602]
[1756841709406,0.06,204.91,204.9,8.79032549]
[1756841710107,0.06,204.91,204.9,21.62990957]
[1756841710303,0.06,204.93,204.92,26.0]
[1756841710508,1e-08,204.93,204.92,29.49421916]
[1756841710719,1e-08,204.93,204.92,30.19421916]
[1756841711528,1e-08,204.93,204.92,39.87191645]
[1756841712913,1e-08,204.93,204.92,31.57995315]
[1756841713110,1e-08,204.93,204.92,39.58759331]
[1756841714534,0.06,204.98,204.96,26.0]
[1756841714711,0.06,204.98,204.97,8.65764016]
[1756841715409,15.64,205.05,204.97,8.65764016]
[1756841715619,15.64,205.05,205.03,12.88497518]
[1756841715911,15.64,205.05,205.04,8.65764016]
[1756841716925,15.64,205.05,205.03,12.88497518]
[1756841717136,15.64,205.05,205.03,13.53497518]
[1756841717311,15.64,205.05,205.04,0.65]
[1756841717938,15.64,205.05,205.04,13.53473731]
[1756841718241,15.64,205.05,205.04,4.87709715]
[1756841718535,15.64,205.05,205.04,13.53473731]
[1756841718920,15.64,205.05,205.04,0.65]
[1756841719245,15.64,205.05,205.04,13.53473731]
[1756841720441,0.06,205.05,205.04,13.53473731]
[1756841721645,0.06,205.05,205.04,5.52709715]
[1756841721938,0.06,205.05,205.04,13.53473731]
[1756841722640,0.06,205.06,205.04,13.53473731]
[1756841722813,0.06,205.06,205.05,8.65764016]
[1756841723242,1e-08,205.06,205.05,34.9419633]
[1756841724039,1e-08,205.06,205.05,39.8188226]
[1756841726443,1e-08,205.06,205.05,13.8188226]
[1756841726636,1e-08,205.06,205.05,13.96098417]
[1756841727127,1e-08,205.06,205.05,22.45631026]
[1756841727328,1e-08,205.06,205.05,14.4486701]
[1756841727737,1e-08,205.06,205.05,94.1486701]
[1756841728041,1e-08,205.06,205.05,13.96098417]
[1756841729219,1e-08,205.06,205.05,53.16098417]
[1756841729422,1e-08,205.06,205.05,13.96098417]
[1756841729741,1e-08,205.06,205.05,13.8188226]
[1756841730365,1e-08,205.06,205.05,53.0188226]
[1756841731646,1e-08,205.06,205.05,57.07749861]
[1756841732014,1e-08,205.09,205.08,26.0]
[1756841732220,0.06,205.11,205.08,38.06631617]
[1756841732441,1e-08,205.11,205.1,38.15471106]
[1756841732644,1e-08,205.14,205.13,26.42648471]
[1756841732839,1e-08,205.14,205.13,77.69280088]
[1756841733034,1e-08,205.14,205.13,78.34280088]
[1756841733436,1e-08,205.14,205.13,76.14553828]
[1756841734034,1e-08,205.14,205.13,89.74113229]
[1756841734746,1e-08,205.14,205.13,36.94553828]
[1756841734944,1e-08,205.14,205.13,76.12553828]
[1756841735651,1e-08,205.14,205.13,36.80337671]
[1756841735854,1e-08,205.14,205.13,75.98337671]
[1756841736345,1e-08,205.14,205.13,36.80337671]
[1756841736657,1e-08,205.14,205.13,31.15928048]
[1756841736866,1e-08,205.14,205.13,75.98337671]
[1756841737149,1e-08,205.14,205.13,35.86905357]
[1756841738629,1e-08,205.14,205.13,36.51905357]
[1756841739038,1e-08,205.14,205.13,36.80337671]
[1756841742654,1e-08,205.14,205.13,36.94553828]
[1756841742860,0.2,205.22,205.21,4.99409623]
[1756841744167,0.2,205.22,205.21,9.86715309]
[1756841746635,0.2,205.22,205.21,10.57715309]
[1756841747168,0.2,205.22,205.21,9.86715309]
[1756841747333,0.2,205.22,205.21,49.00715309]
[1756841747839,0.2,205.22,205.21,9.86715309]
[1756841748038,0.2,205.22,205.21,49.00715309]
[1756841748254,0.2,205.22,205.21,9.86715309]
[1756841748663,0.2,205.22,205.21,49.00715309]
[1756841749361,0.2,205.22,205.21,49.71715309]
[1756841749540,0.2,205.22,205.21,49.00715309]
[1756841750767,0.2,205.22,205.21,9.86715309]
[1756841750969,0.2,205.22,205.21,49.71715309]
[1756841751165,0.2,205.22,205.21,49.00715309]
[1756841752475,0.06,205.23,205.21,49.85931466]
[1756841752638,0.06,205.23,205.22,36.86123878]
[1756841753052,0.06,205.25,205.24,26.0]
[1756841753252,0.06,205.25,205.24,65.12]
[1756841753939,0.06,205.25,205.24,70.82409623]
[1756841755559,0.06,205.25,205.24,75.6964408]
[1756841757768,0.06,205.25,205.24,76.12292551]
[1756841758566,0.06,205.26,205.25,5.27841937]
[1756841758763,0.06,205.27,205.25,5.98841937]
[1756841758951,0.06,205.27,205.26,45.08841937]
[1756841759763,0.06,205.27,205.26,5.15619296]
[1756841759946,0.06,205.27,205.26,49.25028919]
[1756841760148,0.06,205.27,205.26,9.86596605]
[1756841760571,0.06,205.27,205.26,43.97186982]
[1756841760749,0.06,205.27,205.26,49.67596605]
[1756841760954,0.06,205.27,205.26,48.96596605]
[1756841761974,0.06,205.27,205.26,9.86596605]
[1756841762177,0.06,205.27,205.26,48.96596605]
[1756841763155,0.06,205.27,205.24,4.87223817]
[1756841763156,0.62,205.27,205.24,4.87223817]
[1756841763484,0.56,205.26,205.24,4.87223817]
[1756841763662,0.56,205.26,205.23,4.87258198]
[1756841763864,0.56,205.26,205.23,9.86667821]
[1756841764086,0.06,205.27,205.24,4.99409623]
[1756841764581,0.62,205.27,205.24,4.99409623]
[1756841764773,0.06,205.27,205.25,4.99409623]
[1756841765081,0.06,205.27,205.26,4.99409623]
[1756841765388,0.06,205.27,205.26,44.07409623]
[1756841765555,0.06,205.27,205.26,39.08]
[1756841765749,0.06,205.27,205.26,44.07409623]
[1756841766054,0.06,205.27,205.26,48.94596605]
[1756841766572,0.62,205.27,205.26,43.95186982]
[1756841766751,0.62,205.27,205.26,4.87186982]
[1756841767153,0.06,205.27,205.26,4.87186982]
[1756841767490,0.06,205.27,205.26,4.90186982]
[1756841767648,0.06,205.27,205.26,35.89596605]
[1756841767845,0.06,205.27,205.26,74.97596605]
[1756841768050,0.06,205.27,205.26,69.98186982]
[1756841768276,0.06,205.27,205.26,0.03]
[1756841768568,0.06,205.27,205.26,30.90186982]
[1756841769282,0.06,205.27,205.26,0.03]
[1756841770367,0.62,205.27,205.26,0.03]
[1756841770570,0.06,205.27,205.26,0.03]
[1756841770870,0.06,205.27,205.26,5.02409623]
[1756841771059,0.06,205.27,205.26,5.73409623]
[1756841771656,0.06,205.27,205.26,5.02409623]
[1756841772182,0.06,205.27,205.26,0.03]
[1756841772584,0.06,205.27,205.26,5.02409623]
[1756841772971,0.06,205.27,205.26,31.02409623]
[1756841773658,0.06,205.27,205.26,26.03]
[1756841774082,0.62,205.27,205.26,0.03]
[1756841774383,5.61409623,205.27,205.26,0.03]
[1756841774962,0.62,205.27,205.26,0.03]
[1756841775303,0.06,205.27,205.26,0.03]
[1756841780567,0.06,205.27,205.26,0.72]
[1756841780767,0.06,205.27,205.26,5.59186982]
[1756841782562,0.06,205.27,205.26,10.58596605]
[1756841782893,0.06,205.27,205.26,9.89596605]
[1756841783385,0.06,205.27,205.26,5.59186982]
[1756841784490,0.06,205.27,205.26,4.90186982]
[1756841786496,0.06,205.27,205.26,0.03]
[1756841790588,0.06,205.27,205.26,5.71409623]
[1756841791297,0.06,205.28,205.26,5.71409623]
[1756841791472,0.06,205.28,205.27,29.8826517]
[1756841792295,0.06,205.28,205.27,34.75428418]
[1756841792979,0.06,205.3,205.29,26.0]
[1756841793182,0.06,205.3,205.29,29.1926517]
[1756841793385,1e-08,205.3,205.29,29.8826517]
[1756841793585,1e-08,205.31,205.3,26.0]
[1756841793903,1e-08,205.32,205.31,26.42648471]
[1756841794211,1e-08,205.32,205.31,30.30913641]
[1756841794387,1e-08,205.32,205.31,35.17981976]
[1756841794585,1e-08,205.32,205.31,48.77541377]
[1756841794913,0.56,205.45,205.36,0.28432314]
[1756841795203,0.56,205.47,205.42,3.1926517]
[1756841795376,3.3926517,205.48,205.43,3.1926517]
[1756841795699,0.2,205.48,205.44,3.1926517]
[1756841796400,0.2,205.48,205.45,4.86736432]
[1756841796895,0.2,205.48,205.45,8.06001602]
[1756841797310,0.2,205.48,205.47,3.1926517]
[1756841797774,0.2,205.48,205.47,29.8826517]
[1756841798670,0.2,205.48,205.47,34.74954224]
[1756841799476,1e-08,205.48,205.47,31.84121368]
[1756841799680,1e-08,205.48,205.47,35.03386538]
[1756841799875,1e-08,205.48,205.47,74.03386538]
[1756841800373,1e-08,205.48,205.47,74.17602695]
[1756841801168,1e-08,205.48,205.47,31.98337525]
[1756841801370,1e-08,205.48,205.47,35.17602695]
[1756841801599,1e-08,205.48,205.47,74.15602695]
[1756841803596,1e-08,205.51,205.5,26.14216157]
[1756841803797,39.0,205.61,205.5,81.36974321]
[1756841804101,3.1926517,205.61,205.54,26.0]
[1756841804398,3.7526517,205.61,205.55,42.1726517]
[1756841804593,0.56,205.61,205.55,42.1726517]
[1756841804775,3.7526517,205.61,205.56,4.86475968]
[1756841804972,0.56,205.6,205.56,4.86475968]
[1756841805179,0.56,205.6,205.55,47.03761763]
[1756841805507,3.1926517,205.57,205.52,3.1926517]
[1756841805799,0.56,205.56,205.53,26.0]
[1756841805975,0.56,205.59,205.53,26.0]
[1756841806174,3.1926517,205.57,205.53,26.0]
[1756841806583,3.1926517,205.57,205.54,4.86523304]
[1756841806787,3.7526517,205.57,205.54,4.86523304]
[1756841807109,3.1926517,205.55,205.5,3.1926517]
[1756841807272,0.56,205.56,205.5,3.1926517]
[1756841807472,0.56,205.56,205.5,3.9126517]
[1756841807703,3.7526517,205.56,205.5,3.9126517]
[1756841807894,3.1926517,205.57,205.51,3.1926517]
[1756841808510,0.56,205.62,205.56,3.1926517]
[1756841808702,26.0,205.65,205.57,3.1926517]
[1756841808886,3.1926517,205.63,205.57,3.1926517]
[1756841809398,0.56,205.64,205.59,3.1926517]
[1756841809708,0.56,205.66,205.6,3.9126517]
[1756841810013,0.56,205.66,205.59,3.1926517]
[1756841810014,3.1926517,205.65,205.59,3.1926517]
[1756841810179,0.56,205.65,205.59,3.1926517]
[1756841810376,3.7526517,205.65,205.59,3.1926517]
[1756841810999,3.7526517,205.65,205.6,4.86381322]
[1756841811201,0.56,205.66,205.6,5.58381322]
[1756841811391,3.7526517,205.66,205.6,8.77646492]
[1756841811594,0.56,205.66,205.6,8.77646492]
[1756841811798,3.7526517,205.66,205.6,8.77646492]
[1756841811978,0.56,205.65,205.6,4.86381322]
[1756841812175,0.56,205.65,205.6,8.05646492]
[1756841813603,0.56,205.65,205.6,8.77646492]
[1756841813998,0.56,205.65,205.6,5.58381322]
[1756841814184,0.56,205.65,205.6,8.77646492]
[1756841815292,0.56,205.65,205.6,0.72]
[1756841815493,0.56,205.65,205.6,8.7764078]
[1756841815892,3.1926517,205.66,205.6,8.7764078]
[1756841817720,3.1926517,205.66,205.6,3.9126517]
[1756841818009,3.1926517,205.65,205.6,3.9126517]
[1756841818210,3.1926517,205.61,205.55,0.72]
[1756841818517,3.1926517,205.59,205.55,4.86499635]
[1756841818705,3.1926517,205.59,205.55,5.58499635]
[1756841819216,3.1926517,205.59,205.55,0.72]
[1756841819910,3.1926517,205.59,205.54,4.8650064]
[1756841820209,3.1926517,205.59,205.55,0.72]
[1756841820388,30.86331056,205.63,205.56,0.72]
[1756841820720,3.1926517,205.59,205.56,5.58473915]
[1756841821298,0.06,205.65,205.57,3.9126517]
[1756841821506,0.06,205.65,205.59,3.1926517]
[1756841821724,3.1926517,205.64,205.59,3.1926517]
[1756841822023,3.1926517,205.63,205.6,0.72]
[1756841822223,0.06,205.65,205.6,0.72]
[1756841822424,3.1926517,205.63,205.6,0.72]
[1756841822624,3.1926517,205.61,205.56,30.86473915]
[1756841822815,3.1926517,205.6,205.56,0.72]
[1756841823004,3.1926517,205.61,205.56,5.58468946]
[1756841823204,3.1926517,205.61,205.56,8.77734116]
[1756841823413,0.56,205.64,205.57,0.72]
[1756841823624,3.1926517,205.62,205.57,0.72]
[1756841823822,0.06,205.65,205.58,3.1926517]
[1756841824125,3.2526517,205.65,205.59,3.9126517]
[1756841824321,0.06,205.65,205.6,0.72]
[1756841824498,0.06,205.65,205.61,0.72]
[1756841825005,3.2526517,205.65,205.61,5.58351613]
[1756841825207,0.06,205.65,205.62,0.72]
[1756841825542,0.06,205.65,205.63,0.72]
[1756841826130,0.06,205.65,205.61,4.86351613]
[1756841826334,0.06,205.65,205.62,0.72]
[1756841827119,0.06,205.65,205.63,4.86310363]
[1756841827722,3.2526517,205.65,205.62,0.72]
[1756841827928,3.1926517,205.63,205.52,93.29559401]
[1756841828127,3.1926517,205.61,205.57,26.0]
[1756841828309,3.1926517,205.62,205.58,0.72]
[1756841828506,3.1926517,205.64,205.58,3.9126517]
[1756841828815,0.06,205.65,205.59,0.72]
[1756841829013,3.2526517,205.65,205.59,3.9126517]
[1756841829214,3.2526517,205.65,205.6,5.58381322]
[1756841829418,3.1926517,205.62,205.58,5.5842864]
[1756841829624,3.1926517,205.59,205.58,4.8642864]
[1756841829801,3.1926517,205.59,205.57,4.86450237]
[1756841829998,3.1926517,205.59,205.57,5.58450237]
[1756841830226,3.1926517,205.58,205.57,5.58450237]
[1756841830525,3.1926517,205.58,205.56,4.86470019]
[1756841830730,3.1926517,205.58,205.57,0.72]
[1756841831033,3.1926517,205.58,205.53,0.03]
[1756841831202,3.1926517,205.54,205.53,0.03]
[1756841832327,3.1926517,205.57,205.53,0.74]
[1756841832708,3.1926517,205.56,205.54,0.71]
[1756841832913,26.0,205.64,205.54,0.71]
[1756841833107,3.1926517,205.55,205.53,0.03]
[1756841833324,12.7706068,205.6,205.53,0.03]
[1756841833325,3.1926517,205.54,205.53,0.03]
[1756841833717,3.1926517,205.54,205.53,0.74]
[1756841834031,3.1926517,205.54,205.53,0.03]
[1756841834225,3.1926517,205.54,205.53,0.74]
[1756841834410,0.56,205.61,205.53,0.74]
[1756841834616,3.1926517,205.57,205.53,0.74]
[1756841834942,3.1926517,205.57,205.54,0.71]
[1756841835118,3.1926517,205.57,205.53,0.03]
[1756841835119,3.1926517,205.57,205.55,0.71]
[1756841835320,3.1926517,205.56,205.55,5.57477975]
[1756841835707,0.56,205.61,205.55,5.57477975]
[1756841835908,3.1926517,205.57,205.55,5.57477975]
[1756841836330,3.1926517,205.57,205.56,0.71]
[1756841837037,3.7526517,205.57,205.53,0.03]
[1756841837234,3.1926517,205.54,205.53,0.03]
[1756841838135,17.34824571,205.54,205.53,0.03]
[1756841838341,22.63996346,205.54,205.53,0.03]
[1756841838522,22.63996346,205.54,205.5,0.03]
[1756841838523,39.59559401,205.51,205.5,0.03]
[1756841838722,42.93040728,205.51,205.5,0.03]
[1756841839031,43.49040728,205.51,205.5,0.03]
[1756841839626,61.12695734,205.51,205.5,0.03]
[1756841840349,100.29128048,205.51,205.5,0.03]
[1756841840523,13.73775558,205.5,205.4,4.86833585]
[1756841840723,16.93040728,205.49,205.41,4.868279]
[1756841840923,17.49040728,205.49,205.41,4.868279]
[1756841841540,22.35682413,205.49,205.4,4.86854917]
[1756841842243,13.59559401,205.45,205.36,0.71]
[1756841842424,3.1926517,205.37,205.36,0.71]
[1756841842739,3.1926517,205.47,205.37,0.28432314]
[1756841842931,3.1926517,205.46,205.4,3.1926517]
[1756841843139,3.1926517,205.46,205.41,0.71]
[1756841843342,3.1926517,205.46,205.42,0.71]
[1756841843546,3.1926517,205.46,205.44,4.86760124]
[1756841843842,3.1926517,205.46,205.43,0.71]
[1756841844141,39.44,205.5,205.44,0.71]
[1756841844342,26.0,205.49,205.44,0.71]
[1756841844526,3.1926517,205.47,205.44,0.71]
[1756841845656,3.1926517,205.47,205.45,5.57736432]
[1756841846543,3.1926517,205.47,205.43,4.86783819]
[1756841846751,3.1926517,205.46,205.43,5.57783819]
[1756841847039,3.1926517,205.46,205.44,0.71]
[1756841847244,3.1926517,205.46,205.43,4.86783819]
[1756841847461,3.1926517,205.46,205.43,5.57783819]
[1756841848328,3.1926517,205.46,205.44,0.71]
[1756841849146,3.1926517,205.46,205.45,0.71]
[1756841849345,3.1926517,205.46,205.43,4.86783819]
[1756841849532,3.1926517,205.46,205.43,5.57773759]
[1756841850242,64.88,205.49,205.37,79.98432314]
[1756841850243,3.1926517,205.44,205.38,4.86902327]
[1756841850435,3.1926517,205.39,205.38,4.86902327]
[1756841850745,38.88,205.44,205.37,4.8692267]
[1756841850746,43.74762422,205.44,205.37,4.8692267]
[1756841850943,38.88,205.44,205.37,4.8692267]
[1756841851140,3.1926517,205.38,205.37,4.8692267]
[1756841851928,3.1926517,205.38,205.37,5.5792267]
[1756841852634,3.1926517,205.38,205.37,0.71]
[1756841852947,3.1926517,205.38,205.36,4.86945958]
[1756841853134,5.42799887,205.43,205.37,0.03]